fUST/lending_fUST_20241203
["ID","MTS","AMOUNT","RATE_DAILY","PERIOD"]
[344021444,1733209848137,-504.58089983,0.00027945,7]
[344021445,1733209848147,-500.0,0.00027945,7]
[344021446,1733209848158,-500.0,0.00027945,7]
[344021447,1733209848168,-500.0,0.00027945,7]
[344021448,1733209848178,-500.0,0.00027945,7]
[344021449,1733209848189,-500.0,0.00027945,7]
[344021450,1733209848199,-500.0,0.00027945,7]
[344021451,1733209848209,-500.0,0.00027945,7]
[344021452,1733209848219,-500.0,0.00027945,7]
[344021453,1733209848230,-501.95249767,0.00027945,7]
[344021454,1733209848249,-598.14,0.00027945,7]
[344021455,1733209848259,-500.0,0.00027945,7]
[344021456,1733209848270,-500.0,0.00027945,7]
[344021457,1733209848280,-502.80896849,0.00027945,7]
[344021458,1733209848291,-500.0,0.00027945,7]
[344021459,1733209848302,-731.11,0.00027945,7]
[344021460,1733209848312,-175.41,0.00027945,7]
[344021461,1733209848324,-500.0,0.00027945,7]
[344021462,1733209848334,-500.0,0.00027945,7]
[344021463,1733209848344,-500.0,0.00027945,7]
[344021464,1733209848357,-500.0,0.00027945,7]
[344021465,1733209848367,-500.0,0.00027945,7]
[344021466,1733209848377,-640.52,0.00027945,7]
[344021467,1733209848386,-500.0,0.00027945,7]
[344021468,1733209848398,-656.67,0.00027945,7]
[344021470,1733209848408,-500.0,0.00027945,7]
[344021471,1733209848417,-500.0,0.00027945,7]
[344021472,1733209848428,-500.0,0.00027945,7]
[344021473,1733209848438,-536.528085,0.00027945,7]
[344021474,1733209848448,-500.0,0.00027945,7]
[344021475,1733209848459,-500.0,0.00027945,7]
[344021476,1733209848469,-500.0,0.00027945,7]
[344021477,1733209848479,-500.0,0.00027945,7]
[344021478,1733209848492,-500.0,0.00027945,7]
[344021479,1733209848503,-500.0,0.00027945,7]
[344021480,1733209848513,-648.41,0.00027945,7]
[344021481,1733209848524,-500.0,0.00027945,7]
[344021482,1733209848534,-500.0,0.00027945,7]
[344021483,1733209848544,-200.0,0.00027945,7]
[344021484,1733209848554,-7919.88,0.00027945,7]
[344021485,1733209848563,-500.0,0.00027945,7]
[344021486,1733209848574,-500.0,0.00027945,7]
[344021487,1733209848584,-500.0,0.00027945,7]
[344021488,1733209848594,-500.0,0.00027945,7]
[344021489,1733209848604,-500.0,0.00027945,7]
[344021490,1733209848614,-500.0,0.00027945,7]
[344021491,1733209848625,-500.0,0.00027945,7]
[344021492,1733209848636,-500.0,0.00027945,7]
[344021493,1733209848646,-503.83102278,0.00027945,7]
[344021494,1733209848656,-404.60529586,0.00027945,7]
[344021495,1733209848667,-3362.04,0.00027945,7]
[344021496,1733209848677,-500.0,0.00027945,7]
[344021497,1733209848688,-827.86,0.00027945,7]
[344021498,1733209848698,-166.96892509,0.00027945,7]
[344021499,1733209848709,-500.0,0.00027945,7]
[344021500,1733209848718,-500.0,0.00027945,7]
[344021501,1733209848729,-500.0,0.00027945,7]
[344021502,1733209848741,-326.39110737,0.00027945,7]
[344021503,1733209848751,-500.0,0.00027945,7]
[344021504,1733209848762,-256.20144104,0.00027945,7]
[344021505,1733209848773,-500.0,0.00027945,7]
[344021506,1733209848783,-500.0,0.00027945,7]
[344021507,1733209848794,-559.53,0.00027945,7]
[344021508,1733209848804,-500.0,0.00027945,7]
[344021509,1733209848814,-500.0,0.00027945,7]
[344021510,1733209848825,-2475.02210901,0.00027996,2]
[344021511,1733209848835,-202.0,0.00028,2]
[344021512,1733209848845,-150.0,0.0002801,2]
[344021513,1733209848856,-150.0,0.0002801,2]
[344021514,1733209848866,-532.0,0.0002801,2]
[344021515,1733209848875,-2173.0,0.0002801,2]
[344021516,1733209848886,-2377.0,0.0002801,2]
[344021517,1733209848896,-151.0,0.00028153,6]
[344021518,1733209848907,-150.17,0.00028219,7]
[344021519,1733209848918,-505.25736126,0.00028219,7]
[344021520,1733209848928,-500.0,0.00028219,7]
[344021521,1733209848938,-500.0,0.00028219,7]
[344021522,1733209848948,-500.0,0.00028219,7]
[344021523,1733209848958,-349.28743775,0.00028219,7]
[344021524,1733209848968,-500.0,0.00028219,7]
[344021525,1733209848978,-500.0,0.00028219,7]
[344021526,1733209848991,-502.69843321,0.00028219,7]
[344021527,1733209849002,-500.0,0.00028219,7]
[344021528,1733209849012,-500.0,0.00028219,7]
[344021529,1733209849022,-500.0,0.00028219,7]
[344021530,1733209849032,-242.84425141,0.00028219,7]
[344021531,1733209849042,-500.0,0.00028219,7]
[344021532,1733209849051,-500.0,0.00028219,2]
[344021533,1733209849061,-518.32786223,0.00028219,7]
[344021534,1733209849071,-447.97004737,0.00028219,7]
[344021535,1733209849081,-500.0,0.00028219,7]
[344021536,1733209849091,-500.0,0.00028219,7]
[344021537,1733209849162,-268.364763,0.00028219,7]
[344021538,1733209849173,-626.13982976,0.00028219,7]
[344021539,1733209849183,-500.0,0.00028219,7]
[344021540,1733209849194,-500.0,0.00028219,7]
[344021541,1733209849205,-500.0,0.00028219,7]
[344021542,1733209849215,-500.0,0.00028219,7]
[344021543,1733209849225,-500.0,0.00028219,7]
[344021544,1733209849236,-500.0,0.00028219,7]
[344021545,1733209849250,-500.0,0.00028219,7]
[344021546,1733209849261,-500.0,0.00028219,7]
[344021547,1733209849271,-500.0,0.00028219,7]
[344021548,1733209849281,-640.61,0.00028219,7]
[344021549,1733209849294,-363.73985967,0.00028219,7]
[344021550,1733209849304,-500.0,0.00028219,7]
[344021551,1733209849314,-500.0,0.00028219,7]
[344021552,1733209849325,-500.0,0.00028219,7]
[344021553,1733209849336,-500.0,0.00028219,7]
[344021554,1733209849346,-500.0,0.00028219,7]
[344021555,1733209849366,-164.72490386,0.00028219,7]
[344021556,1733209849379,-500.0,0.00028219,7]
[344021557,1733209849390,-500.0,0.00028219,7]
[344021558,1733209849400,-500.0,0.00028219,7]
[344021559,1733209849411,-500.0,0.00028219,7]
[344021560,1733209849422,-598.14,0.00028219,7]
[344021561,1733209849431,-257.51654877,0.00028219,7]
[344021562,1733209849442,-500.0,0.00028219,7]
[344021563,1733209849452,-198.42119685,0.00028219,7]
[344021564,1733209849462,-731.11,0.00028219,7]
[344021565,1733209849472,-175.41,0.00028219,7]
[344021566,1733209849482,-500.0,0.00028219,7]
[344021567,1733209849495,-500.0,0.00028219,7]
[344021568,1733209849506,-500.0,0.00028219,7]
[344021569,1733209849516,-500.0,0.00028219,7]
[344021570,1733209849526,-640.52,0.00028219,7]
[344021571,1733209849536,-500.0,0.00028219,7]
[344021572,1733209849547,-656.67,0.00028219,7]
[344021573,1733209849557,-500.0,0.00028219,7]
[344021574,1733209849567,-500.0,0.00028219,7]
[344021575,1733209849577,-500.0,0.00028219,7]
[344021576,1733209849587,-500.0,0.00028219,7]
[344021577,1733209849597,-500.0,0.00028219,7]
[344021578,1733209849607,-500.0,0.00028219,7]
[344021579,1733209849618,-500.0,0.00028219,7]
[344021580,1733209849628,-500.0,0.00028219,7]
[344021581,1733209849639,-635.35996263,0.00028219,7]
[344021582,1733209849649,-648.41,0.00028219,7]
[344021583,1733209849659,-500.0,0.00028219,7]
[344021584,1733209849669,-500.0,0.00028219,7]
[344021585,1733209849679,-200.0,0.00028219,7]
[344021586,1733209849690,-7919.88,0.00028219,7]
[344021587,1733209849700,-500.0,0.00028219,7]
[344021588,1733209849710,-500.0,0.00028219,7]
[344021589,1733209849721,-500.0,0.00028219,7]
[344021590,1733209849731,-500.0,0.00028219,7]
[344021591,1733209849745,-500.0,0.00028219,7]
[344021592,1733209849757,-500.0,0.00028219,7]
[344021593,1733209849767,-500.0,0.00028219,7]
[344021594,1733209849778,-359.2,0.00028219,7]
[344021595,1733209849788,-3362.04,0.00028219,7]
[344021596,1733209849798,-516.30738873,0.00028219,7]
[344021597,1733209849808,-827.86,0.00028219,7]
[344021598,1733209849818,-500.0,0.00028219,7]
[344021599,1733209849828,-500.0,0.00028219,7]
[344021600,1733209849838,-440.71574265,0.00028219,7]
[344021601,1733209849848,-500.0,0.00028219,7]
[344021602,1733209849859,-500.0,0.00028219,7]
[344021603,1733209849869,-500.0,0.00028219,7]
[344021604,1733209849880,-559.53,0.00028219,7]
[344021605,1733209849890,-500.0,0.00028219,7]
[344021606,1733209849900,-500.0,0.00028219,7]
[344021607,1733209849911,-2258.0,0.00028284,2]
[344021608,1733209849922,-150.17,0.00028493,7]
[344021609,1733209849932,-500.0,0.00028493,7]
[344021610,1733209849942,-500.0,0.00028493,7]
[344021611,1733209849954,-500.0,0.00028493,7]
[344021612,1733209849964,-500.0,0.00028493,7]
[344021613,1733209849975,-500.0,0.00028493,7]
[344021614,1733209849988,-510.12644664,0.00028493,7]
[344021615,1733209850004,-500.0,0.00028493,7]
[344021616,1733209850014,-516.88119203,0.00028493,7]
[344021617,1733209850024,-486.27161451,0.00028493,7]
[344021618,1733209850034,-500.0,0.00028493,2]
[344021619,1733209850046,-500.0,0.00028493,7]
[344021620,1733209850056,-500.0,0.00028493,7]
[344021621,1733209850066,-500.0,0.00028493,7]
[344021622,1733209850076,-500.0,0.00028493,7]
[344021623,1733209850085,-500.0,0.00028493,7]
[344021624,1733209850095,-500.0,0.00028493,7]
[344021625,1733209850106,-500.0,0.00028493,7]
[344021626,1733209850115,-500.0,0.00028493,7]
[344021627,1733209850125,-500.0,0.00028493,7]
[344021628,1733209850135,-500.0,0.00028493,7]
[344021629,1733209850145,-500.0,0.00028493,7]
[344021630,1733209850155,-640.61,0.00028493,7]
[344021631,1733209850165,-500.0,0.00028493,7]
[344021632,1733209850174,-500.0,0.00028493,7]
[344021633,1733209850184,-500.0,0.00028493,7]
[344021634,1733209850195,-500.0,0.00028493,7]
[344021635,1733209850204,-500.0,0.00028493,7]
[344021636,1733209850214,-500.0,0.00028493,7]
[344021637,1733209850224,-500.0,0.00028493,7]
[344021638,1733209850234,-500.0,0.00028493,7]
[344021639,1733209850248,-598.14,0.00028493,7]
[344021640,1733209850258,-500.0,0.00028493,7]
[344021641,1733209850269,-731.11,0.00028493,7]
[344021642,1733209850279,-175.41,0.00028493,7]
[344021643,1733209850289,-500.0,0.00028493,7]
[344021644,1733209850298,-500.0,0.00028493,7]
[344021645,1733209850308,-500.0,0.00028493,7]
[344021646,1733209850374,-500.0,0.00028493,7]
[344021647,1733209850385,-640.52,0.00028493,7]
[344021648,1733209850395,-500.0,0.00028493,7]
[344021649,1733209850407,-656.67,0.00028493,7]
[344021650,1733209850418,-297.69938486,0.00028493,7]
[344021651,1733209850428,-500.0,0.00028493,7]
[344021652,1733209850437,-500.0,0.00028493,7]
[344021653,1733209850447,-506.07657769,0.00028493,7]
[344021654,1733209850457,-475.17219538,0.00028493,7]
[344021655,1733209850467,-500.0,0.00028493,7]
[344021656,1733209850476,-507.7929103,0.00028493,7]
[344021657,1733209850490,-500.0,0.00028493,7]
[344021658,1733209850500,-648.41,0.00028493,7]
[344021659,1733209850510,-501.3933438,0.00028493,7]
[344021660,1733209850520,-500.0,0.00028493,7]
[344021661,1733209850531,-263.38735712,0.00028493,7]
[344021662,1733209850541,-7919.88,0.00028493,7]
[344021663,1733209850551,-500.0,0.00028493,7]
[344021664,1733209850561,-458.50214816,0.00028493,7]
[344021665,1733209850572,-500.0,0.00028493,7]
[344021666,1733209850583,-500.0,0.00028493,7]
[344021667,1733209850595,-500.0,0.00028493,7]
[344021668,1733209850605,-500.0,0.00028493,7]
[344021669,1733209850616,-500.0,0.00028493,7]
[344021670,1733209850626,-3362.04,0.00028493,7]
[344021671,1733209850637,-827.86,0.00028493,7]
[344021672,1733209850647,-500.0,0.00028493,7]
[344021673,1733209850656,-500.0,0.00028493,7]
[344021674,1733209850666,-500.0,0.00028493,7]
[344021675,1733209850676,-500.0,0.00028493,7]
[344021676,1733209850686,-559.53,0.00028493,7]
[344021677,1733209850695,-500.0,0.00028493,7]
[344021678,1733209850705,-500.0,0.00028493,7]
[344021679,1733209850715,-500.0,0.00028493,7]
[344021680,1733209850725,-300.0,0.000285,13]
[344021681,1733209850737,-2897.35120429,0.00028553,2]
[344021682,1733209850748,-2128.04,0.000286,2]
[344021683,1733209850759,-2475.02210901,0.00028615,2]
[344021684,1733209850769,-151.0,0.0002864,6]
[344021685,1733209850779,-155.00078088,0.00028732,2]
[344021686,1733209850792,-500.0,0.00028741,10]
[344021687,1733209850806,-207.87857668,0.00028767,7]
[344021688,1733209850816,-500.0,0.00028767,7]
[344021689,1733209850826,-500.0,0.00028767,7]
[344021690,1733209850835,-500.0,0.00028767,7]
[344021691,1733209850845,-500.0,0.00028767,7]
[344021692,1733209850855,-500.0,0.00028767,7]
[344021693,1733209850865,-500.0,0.00028767,7]
[344021694,1733209850875,-539.88978058,0.00028767,2]
[344021695,1733209850884,-561.18534592,0.00028767,7]
[344021696,1733209850894,-500.0,0.00028767,7]
[344021697,1733209850903,-500.0,0.00028767,7]
[344021698,1733209850913,-645.99564344,0.00028767,7]
[344021699,1733209850923,-500.0,0.00028767,7]
[344021700,1733209850932,-500.0,0.00028767,7]
[344021701,1733209850942,-500.0,0.00028767,7]
[344021702,1733209850952,-500.0,0.00028767,7]
[344021703,1733209850962,-500.0,0.00028767,7]
[344021704,1733209850972,-500.0,0.00028767,7]
[344021705,1733209850981,-500.0,0.00028767,7]
[344021706,1733209850995,-640.61,0.00028767,7]
[344021707,1733209851005,-500.0,0.00028767,7]
[344021708,1733209851015,-516.76662678,0.00028767,7]
[344021709,1733209851025,-500.0,0.00028767,7]
[344021710,1733209851035,-500.0,0.00028767,7]
[344021711,1733209851045,-500.0,0.00028767,7]
[344021712,1733209851054,-500.0,0.00028767,7]
[344021713,1733209851064,-500.0,0.00028767,7]
[344021714,1733209851074,-598.14,0.00028767,7]
[344021715,1733209851084,-500.0,0.00028767,7]
[344021716,1733209851094,-731.11,0.00028767,7]
[344021717,1733209851103,-175.41,0.00028767,7]
[344021718,1733209851113,-500.0,0.00028767,7]
[344021719,1733209851123,-500.0,0.00028767,7]
[344021720,1733209851132,-500.0,0.00028767,7]
[344021721,1733209851142,-500.0,0.00028767,7]
[344021722,1733209851152,-640.52,0.00028767,7]
[344021723,1733209851162,-500.0,0.00028767,7]
[344021724,1733209851171,-656.67,0.00028767,7]
[344021725,1733209851181,-500.0,0.00028767,7]
[344021726,1733209851191,-500.0,0.00028767,7]
[344021727,1733209851200,-500.0,0.00028767,7]
[344021728,1733209851209,-500.0,0.00028767,7]
[344021729,1733209851219,-648.41,0.00028767,7]
[344021730,1733209851229,-500.0,0.00028767,4]
[344021731,1733209851244,-503.5829179,0.00028767,7]
[344021732,1733209851254,-7919.88,0.00028767,7]
[344021733,1733209851264,-500.0,0.00028767,7]
[344021734,1733209851274,-500.0,0.00028767,7]
[344021735,1733209851283,-374.02868751,0.00028767,7]
[344021736,1733209851294,-500.0,0.00028767,7]
[344021737,1733209851304,-500.0,0.00028767,7]
[344021738,1733209851313,-500.0,0.00028767,7]
[344021739,1733209851323,-3362.04,0.00028767,7]
[344021740,1733209851334,-827.86,0.00028767,7]
[344021741,1733209851344,-500.0,0.00028767,7]
[344021742,1733209851354,-500.0,0.00028767,7]
[344021743,1733209851364,-500.0,0.00028767,7]
[344021744,1733209851374,-500.0,0.00028767,7]
[344021745,1733209851391,-559.53,0.00028767,7]
[344021746,1733209851451,-500.0,0.00028767,7]
[344021747,1733209851461,-500.0,0.00028767,7]
[344021748,1733209851471,-500.0,0.00028767,7]
[344021749,1733209851480,-314.0,0.00028767,2]
[344021750,1733209851495,-161.0,0.00028767,2]
[344021751,1733209851507,-292.74,0.000288,31]
[344021752,1733209851517,-292.74,0.000288,31]
[344021753,1733209851528,-292.74,0.000288,31]
[344021754,1733209851537,-292.74,0.000288,31]
[344021755,1733209851547,-292.74,0.000288,31]
[344021756,1733209851558,-292.74,0.000288,31]
[344021757,1733209851568,-292.74,0.000288,31]
[344021758,1733209851577,-292.74,0.000288,31]
[344021759,1733209851586,-292.74,0.000288,31]
[344021760,1733209851596,-292.74,0.000288,31]
[344021761,1733209851606,-292.74,0.000288,31]
[344021762,1733209851617,-292.74,0.000288,31]
[344021763,1733209851627,-5000.0,0.0002893,2]
[344021764,1733209851638,-424.7681284,0.00028932,30]
[344021765,1733209851648,-156.8894864,0.00028932,30]
[344021766,1733209851658,-153.0,0.00028932,30]
[344021767,1733209851667,-153.0,0.00028932,30]
[344021768,1733209851678,-333.48799,0.00029,120]
[344021769,1733209851687,-500.0,0.00029041,7]
[344021770,1733209851697,-500.0,0.00029041,7]
[344021771,1733209851708,-500.0,0.00029041,7]
[344021772,1733209851718,-500.0,0.00029041,7]
[344021773,1733209851728,-500.0,0.00029041,7]
[344021774,1733209851743,-500.0,0.00029041,7]
[344021775,1733209851754,-500.0,0.00029041,7]
[344021776,1733209851765,-199.04,0.00029041,7]
[344021777,1733209851776,-500.0,0.00029041,7]
[344021778,1733209851787,-500.0,0.00029041,7]
[344021779,1733209851797,-500.0,0.00029041,7]
[344021780,1733209851809,-500.0,0.00029041,7]
[344021781,1733209851820,-607.58031947,0.00029041,7]
[344021782,1733209851831,-640.61,0.00029041,7]
[344021783,1733209851841,-500.0,0.00029041,7]
[344021784,1733209851851,-500.0,0.00029041,7]
[344021785,1733209851862,-500.0,0.00029041,7]
[344021786,1733209851872,-500.0,0.00029041,7]
[344021787,1733209851882,-500.0,0.00029041,7]
[344021788,1733209851892,-598.14,0.00029041,7]
[344021789,1733209851902,-500.0,0.00029041,7]
[344021790,1733209851912,-731.11,0.00029041,7]
[344021791,1733209851922,-175.41,0.00029041,7]
[344021792,1733209851931,-500.0,0.00029041,7]
[344021793,1733209851943,-500.0,0.00029041,7]
[344021794,1733209851953,-500.0,0.00029041,7]
[344021795,1733209851964,-500.0,0.00029041,7]
[344021796,1733209851973,-640.52,0.00029041,7]
[344021797,1733209851983,-500.0,0.00029041,7]
[344021798,1733209852000,-656.67,0.00029041,7]
[344021799,1733209852010,-500.0,0.00029041,7]
[344021800,1733209852020,-500.0,0.00029041,7]
[344021801,1733209852031,-500.0,0.00029041,7]
[344021802,1733209852041,-500.0,0.00029041,7]
[344021803,1733209852051,-648.41,0.00029041,7]
[344021804,1733209852061,-7919.88,0.00029041,7]
[344021805,1733209852071,-500.0,0.00029041,7]
[344021806,1733209852081,-500.0,0.00029041,7]
[344021807,1733209852091,-500.0,0.00029041,7]
[344021808,1733209852101,-500.0,0.00029041,7]
[344021809,1733209852111,-500.0,0.00029041,7]
[344021810,1733209852121,-3362.04,0.00029041,7]
[344021811,1733209852131,-827.86,0.00029041,7]
[344021812,1733209852140,-500.0,0.00029041,7]
[344021813,1733209852150,-500.0,0.00029041,7]
[344021814,1733209852160,-500.0,0.00029041,7]
[344021815,1733209852169,-500.0,0.00029041,7]
[344021816,1733209852179,-559.53,0.00029041,7]
[344021817,1733209852189,-500.0,0.00029041,7]
[344021818,1733209852199,-500.0,0.00029041,7]
[344021819,1733209852208,-500.0,0.00029041,7]
[344021820,1733209852218,-151.0,0.00029126,6]
[344021821,1733209852228,-2475.02210901,0.00029235,2]
[344021822,1733209852244,-500.0,0.00029315,7]
[344021823,1733209852258,-500.0,0.00029315,7]
[344021824,1733209852268,-415.35797214,0.00029315,7]
[344021825,1733209852278,-500.0,0.00029315,7]
[344021826,1733209852290,-500.0,0.00029315,7]
[344021827,1733209852301,-500.0,0.00029315,7]
[344021828,1733209852311,-515.28,0.00029315,7]
[344021829,1733209852320,-500.0,0.00029315,7]
[344021830,1733209852331,-500.0,0.00029315,7]
[344021831,1733209852342,-500.0,0.00029315,7]
[344021832,1733209852352,-640.61,0.00029315,7]
[344021833,1733209852362,-500.0,0.00029315,7]
[344021834,1733209852372,-500.0,0.00029315,7]
[344021835,1733209852382,-500.0,0.00029315,7]
[344021836,1733209852392,-500.0,0.00029315,7]
[344021837,1733209852401,-565.34069211,0.00029315,7]
[344021838,1733209852461,-598.14,0.00029315,7]
[344021839,1733209852471,-500.0,0.00029315,7]
[344021840,1733209852482,-731.11,0.00029315,7]
[344021841,1733209852495,-175.41,0.00029315,7]
[344021842,1733209852506,-500.0,0.00029315,7]
[344021843,1733209852517,-500.0,0.00029315,7]
[344021844,1733209852528,-500.0,0.00029315,7]
[344021845,1733209852538,-500.0,0.00029315,7]
[344021846,1733209852549,-640.52,0.00029315,7]
[344021847,1733209852560,-500.0,0.00029315,7]
[344021848,1733209852571,-656.67,0.00029315,7]
[344021849,1733209852582,-500.0,0.00029315,7]
[344021850,1733209852592,-500.0,0.00029315,7]
[344021851,1733209852603,-500.0,0.00029315,7]
[344021852,1733209852613,-500.0,0.00029315,7]
[344021853,1733209852623,-648.41,0.00029315,7]
[344021854,1733209852633,-7919.88,0.00029315,7]
[344021855,1733209852642,-500.0,0.00029315,7]
[344021856,1733209852652,-500.0,0.00029315,7]
[344021857,1733209852662,-500.0,0.00029315,7]
[344021858,1733209852672,-500.0,0.00029315,7]
[344021859,1733209852682,-500.0,0.00029315,7]
[344021860,1733209852692,-3362.04,0.00029315,7]
[344021861,1733209852702,-827.86,0.00029315,7]
[344021862,1733209852712,-500.0,0.00029315,7]
[344021863,1733209852722,-500.0,0.00029315,7]
[344021864,1733209852731,-500.0,0.00029315,7]
[344021865,1733209852744,-500.0,0.00029315,7]
[344021866,1733209852754,-500.0,0.00029315,7]
[344021867,1733209852764,-559.53,0.00029315,7]
[344021868,1733209852774,-500.0,0.00029315,7]
[344021869,1733209852784,-500.0,0.00029315,7]
[344021870,1733209852794,-501.514,0.00029509,2]
[344021871,1733209852805,-3200.0,0.00029509,2]
[344021872,1733209852815,-500.0,0.00029589,7]
[344021873,1733209852824,-500.0,0.00029589,7]
[344021874,1733209852834,-500.0,0.00029589,7]
[344021875,1733209852844,-500.0,0.00029589,7]
[344021876,1733209852854,-500.0,0.00029589,7]
[344021877,1733209852863,-500.0,0.00029589,7]
[344021878,1733209852873,-500.0,0.00029589,7]
[344021879,1733209852883,-500.0,0.00029589,7]
[344021880,1733209852893,-640.61,0.00029589,7]
[344021881,1733209852903,-500.0,0.00029589,7]
[344021882,1733209852912,-500.0,0.00029589,7]
[344021883,1733209852922,-500.0,0.00029589,7]
[344021884,1733209852931,-500.0,0.00029589,7]
[344021885,1733209852940,-598.14,0.00029589,7]
[344021886,1733209852950,-530.27,0.00029589,7]
[344021887,1733209852960,-731.11,0.00029589,7]
[344021888,1733209852970,-175.41,0.00029589,7]
[344021889,1733209852979,-500.0,0.00029589,7]
[344021890,1733209852992,-500.0,0.00029589,7]
[344021891,1733209853002,-500.0,0.00029589,7]
[344021892,1733209853012,-500.0,0.00029589,7]
[344021893,1733209853021,-640.52,0.00029589,7]
[344021894,1733209853031,-500.0,0.00029589,7]
[344021895,1733209853041,-656.67,0.00029589,7]
[344021896,1733209853051,-500.0,0.00029589,7]
[344021897,1733209853061,-500.0,0.00029589,7]
[344021898,1733209853071,-600.54590536,0.00029589,7]
[344021899,1733209853080,-500.0,0.00029589,7]
[344021900,1733209853090,-648.41,0.00029589,7]
[344021901,1733209853100,-7919.88,0.00029589,7]
[344021902,1733209853109,-365.47883023,0.00029589,7]
[344021903,1733209853119,-500.0,0.00029589,7]
[344021904,1733209853128,-500.0,0.00029589,7]
[344021905,1733209853138,-500.0,0.00029589,7]
[344021906,1733209853147,-3362.04,0.00029589,7]
[344021907,1733209853157,-827.86,0.00029589,7]
[344021908,1733209853166,-614.21,0.00029589,7]
[344021909,1733209853175,-500.0,0.00029589,7]
[344021910,1733209853185,-500.0,0.00029589,7]
[344021911,1733209853195,-500.0,0.00029589,7]
[344021912,1733209853204,-500.0,0.00029589,7]
[344021913,1733209853214,-559.53,0.00029589,7]
[344021914,1733209853224,-500.0,0.00029589,7]
[344021915,1733209853233,-151.0,0.00029613,7]
[344021916,1733209853247,-586.054,0.00029738,15]
[344021917,1733209853257,-151.0,0.00029749,2]
[344021918,1733209853266,-292.74,0.000298,31]
[344021919,1733209853275,-292.74,0.000298,31]
[344021920,1733209853286,-292.74,0.000298,31]
[344021921,1733209853296,-292.74,0.000298,31]
[344021922,1733209853353,-292.74,0.000298,31]
[344021923,1733209853363,-292.74,0.000298,31]
[344021924,1733209853372,-292.74,0.000298,31]
[344021925,1733209853382,-292.74,0.000298,31]
[344021926,1733209853391,-292.74,0.000298,31]
[344021927,1733209853401,-292.74,0.000298,31]
[344021928,1733209853411,-292.74,0.000298,31]
[344021929,1733209853420,-292.74,0.000298,31]
[344021930,1733209853430,-292.74,0.000298,31]
[344021931,1733209853440,-292.74,0.000298,31]
[344021932,1733209853450,-292.74,0.000298,31]
[344021933,1733209853460,-292.74,0.000298,31]
[344021934,1733209853470,-292.74,0.000298,31]
[344021935,1733209853481,-292.74,0.000298,31]
[344021936,1733209853493,-292.74,0.000298,31]
[344021937,1733209853503,-292.74,0.000298,31]
[344021938,1733209853512,-292.74,0.000298,31]
[344021939,1733209853521,-292.74,0.000298,31]
[344021940,1733209853532,-292.74,0.000298,31]
[344021941,1733209853541,-292.74,0.000298,31]
[344021942,1733209853551,-2475.02210901,0.00029854,2]
[344021943,1733209853561,-500.0,0.00029863,7]
[344021944,1733209853571,-500.0,0.00029863,7]